fUSD/lending_fUSD_20240211
["ID","MTS","AMOUNT","RATE_DAILY","PERIOD"]
[313719832,1707610242851,-638.83,0.000335,2]
[313719833,1707610242861,-638.83,0.000335,2]
[313719834,1707610242871,-638.83,0.000335,2]
[313719835,1707610242883,-638.83,0.000335,2]
[313719836,1707610242893,-638.83,0.000335,2]
[313719837,1707610242904,-638.83,0.000335,2]
[313719838,1707610242914,-638.83,0.000335,2]
[313719839,1707610242926,-638.83,0.000335,2]
[313719840,1707610242936,-638.83,0.000335,2]
[313719841,1707610242947,-638.83,0.000335,2]
[313719842,1707610242958,-638.83,0.000335,2]
[313719843,1707610242969,-638.83,0.000335,2]
[313719844,1707610242981,-638.83,0.000335,2]
[313719845,1707610242992,-638.83,0.000335,2]
[313719846,1707610243003,-638.83,0.000335,2]
[313719847,1707610243015,-638.83,0.000335,2]
[313719848,1707610243026,-150.0,0.00033598,2]
[313719849,1707610243038,-152.59870879,0.000339,2]
[313719850,1707610243049,-152.59870878,0.000339,2]
[313719851,1707610243061,-152.59870878,0.000339,2]
[313719852,1707610243073,-2196.600352,0.00033909,2]
[313719853,1707610243084,-1191.27658,0.00033909,2]
[313719854,1707610243095,-171.997842,0.00033909,2]
[313719855,1707610243105,-1600.268968,0.00033909,2]
[313719856,1707610243116,-50000.0,0.00034,4]
[313719857,1707610243129,-767.10554147,0.00034,4]
[313719858,1707610243140,-150.0,0.00034175,2]
[313719859,1707610243150,-150.0,0.00034219,30]
[313719860,1707610243160,-150.0,0.00034219,30]
[313719861,1707610243170,-6353.1304031,0.0003422,10]
[313719862,1707610243181,-38073.52038678,0.0003422,10]
[313719863,1707610243191,-253333.78533875,0.0003422,10]
[313719864,1707610243201,-43345.65538889,0.0003422,10]
[313719865,1707610243211,-33243.48760556,0.0003422,10]
[313719866,1707610243222,-787.364588,0.0003422,7]
[313719867,1707610243233,-787.364588,0.0003422,7]
[313719868,1707610243245,-155.0,0.00034247,2]
[313719869,1707610243257,-155.0,0.00034247,2]
[313719870,1707610243268,-2196.600352,0.00034322,2]
[313719871,1707610243279,-1191.27658,0.00034322,2]
[313719872,1707610243290,-1600.268968,0.00034322,2]
[313719873,1707610243300,-2008.72,0.0003445,2]
[313719874,1707610243310,-500.0,0.0003452,2]
[313719875,1707610243321,-500.0,0.0003452,2]
[313719876,1707610243330,-500.0,0.0003452,2]
[313719877,1707610243340,-500.0,0.0003452,2]
[313719878,1707610243350,-500.0,0.0003452,2]
[313719880,1707610243360,-500.0,0.0003452,2]
[313719881,1707610243369,-500.0,0.0003452,2]
[313719882,1707610243382,-500.0,0.0003452,2]
[313719883,1707610243391,-500.0,0.0003452,2]
[313719884,1707610243401,-500.0,0.0003452,2]
[313719885,1707610243411,-500.0,0.0003452,2]
[313719886,1707610243421,-500.0,0.0003452,2]
[313719887,1707610243430,-500.0,0.0003452,2]
[313719888,1707610243441,-500.0,0.0003452,2]
[313719889,1707610243450,-500.0,0.0003452,2]
[313719890,1707610243460,-500.0,0.0003452,2]
[313719891,1707610243470,-500.0,0.0003452,2]
[313719892,1707610243480,-500.0,0.0003452,2]
[313719893,1707610243490,-500.0,0.0003452,2]
[313719894,1707610243500,-500.0,0.0003452,2]
[313719895,1707610243510,-500.0,0.0003452,2]
[313719896,1707610243520,-500.0,0.0003452,2]
[313719897,1707610243529,-500.0,0.0003452,2]
[313719898,1707610243539,-500.0,0.0003452,2]
[313719899,1707610243549,-500.0,0.0003452,2]
[313719900,1707610243559,-500.0,0.0003452,2]
[313719901,1707610243569,-500.0,0.0003452,2]
[313719902,1707610243578,-500.0,0.0003452,2]
[313719903,1707610243588,-500.0,0.0003452,2]
[313719904,1707610243598,-500.0,0.0003452,2]
[313719905,1707610243607,-500.0,0.0003452,2]
[313719906,1707610243618,-500.0,0.0003452,2]
[313719907,1707610243631,-500.0,0.0003452,2]
[313719908,1707610243642,-500.0,0.0003452,2]
[313719909,1707610243652,-500.0,0.0003452,2]
[313719910,1707610243662,-500.0,0.0003452,2]
[313719911,1707610243672,-500.0,0.0003452,2]
[313719912,1707610243681,-500.0,0.0003452,2]
[313719913,1707610243691,-500.0,0.0003452,2]
[313719914,1707610243701,-500.0,0.0003452,2]
[313719915,1707610243711,-10000.0,0.00034521,2]
[313719916,1707610243720,-2196.600352,0.00034736,2]
[313719917,1707610243730,-1191.27658,0.00034736,2]
[313719918,1707610243740,-171.997842,0.00034736,2]
[313719919,1707610243750,-171.720055,0.00034736,2]
[313719920,1707610243759,-1600.268968,0.00034736,2]
[313719921,1707610243769,-150.0,0.00034751,2]
[313719922,1707610243779,-9013.93953825,0.000349,4]
[313719923,1707610243789,-2460.82046818,0.000349,2]
[313719924,1707610243800,-2460.82046804,0.000349,2]
[313719925,1707610243811,-2460.82046804,0.000349,2]
[313719926,1707610244055,-2460.82046804,0.000349,2]
[313719927,1707610244069,-2460.82046804,0.000349,2]
[313719928,1707610244080,-2460.82046804,0.000349,2]
[313719929,1707610244089,-2460.82046804,0.000349,2]
[313719930,1707610244098,-2460.82046804,0.000349,2]
[313719931,1707610244107,-2460.82046804,0.000349,2]
[313719932,1707610244116,-206.0,0.00034919,21]
[313719933,1707610244128,-24208.1843809,0.00034952,2]
[313719934,1707610244137,-16135.7448522,0.00034976,2]
[313719935,1707610244146,-3715.4207923,0.00034976,2]
[313719936,1707610244155,-13414.1515851,0.00034976,2]
[313719937,1707610244165,-3258.4597974,0.00034976,2]
[313719938,1707610244174,-706.53,0.00034991,2]
[313719939,1707610244184,-50000.0,0.00035,5]
[313719940,1707610244193,-155.0,0.00035,2]
[313719941,1707610244202,-5000.0,0.00035,25]
[313719942,1707610244211,-155.0,0.00035,4]
[313719943,1707610244221,-3443.85396688,0.00035,5]
[313719944,1707610244233,-825.73846634,0.00035,5]
[313719945,1707610244241,-40317.18644522,0.00035,4]
[313719946,1707610244251,-450.84278538,0.00035,4]
[313719947,1707610244260,-156.8412092,0.00035,4]
[313719948,1707610244269,-600.0,0.00035,3]
[313719949,1707610244278,-16314.25993829,0.00035,2]
[313719950,1707610244287,-16314.25993829,0.00035,2]
[313719951,1707610244296,-465.8432092,0.00035,2]
[313719952,1707610244305,-150.0,0.00035328,2]
[313719953,1707610244314,-189.73085466,0.000355,30]
[313719954,1707610244324,-638.83,0.000356,3]
[313719955,1707610244333,-638.83,0.000356,3]
[313719956,1707610244342,-638.83,0.000356,3]
[313719957,1707610244351,-638.83,0.000356,3]
[313719958,1707610244360,-638.83,0.000356,3]
[313719959,1707610244369,-638.83,0.000356,3]
[313719960,1707610244380,-638.83,0.000356,3]
[313719961,1707610244393,-638.83,0.000356,3]
[313719962,1707610244403,-638.83,0.000356,3]
[313719963,1707610244412,-638.83,0.000356,3]
[313719964,1707610244422,-638.83,0.000356,3]
[313719965,1707610244431,-638.83,0.000356,3]
[313719966,1707610244440,-638.83,0.000356,3]
[313719967,1707610244450,-638.83,0.000356,3]
[313719968,1707610244459,-638.83,0.000356,3]
[313719969,1707610244469,-638.83,0.000356,3]
[313719970,1707610244478,-638.83,0.000356,3]
[313719971,1707610244488,-638.83,0.000356,3]
[313719972,1707610244498,-638.83,0.000356,3]
[313719973,1707610244507,-638.83,0.000356,3]
[313719974,1707610244517,-787.364588,0.000356,7]
[313719975,1707610244527,-787.364588,0.000356,7]
[313719976,1707610244536,-5731.34,0.00035616,2]
[313719977,1707610244546,-3184.74,0.00035616,2]
[313719978,1707610244555,-409.31,0.00035616,2]
[313719979,1707610244565,-160.29,0.00035616,2]
[313719980,1707610244574,-151.72,0.00035616,2]
[313719981,1707610244584,-688.75,0.00035616,2]
[313719982,1707610244593,-150.0,0.00035616,2]
[313719983,1707610244603,-155.0,0.00035617,2]
[313719984,1707610244612,-10000.0,0.00035798,2]
[313719985,1707610244622,-700.37,0.0003589,120]
[313719986,1707610244633,-153.87,0.000359,3]
[313719987,1707610244642,-153.87,0.000359,3]
[313719988,1707610244651,-153.87,0.000359,3]
[313719989,1707610244661,-153.87,0.000359,3]
[313719990,1707610244670,-150.0,0.00035905,2]
[313719991,1707610244680,-1470.91479866,0.00035905,2]
[313719992,1707610244689,-152.0,0.00035971,3]
[313719993,1707610244699,-2232.495663,0.00035975,2]
[313719994,1707610244709,-509.3086769,0.00035975,2]
[313719995,1707610244719,-50000.0,0.00036,6]
[313719996,1707610244729,-299.82335503,0.00036,4]
[313719997,1707610244739,-8207.44411375,0.00036,30]
[313719998,1707610244748,-4000.0,0.00036,2]
[313719999,1707610244758,-2008.72,0.00036175,2]
[313720000,1707610244767,-2460.82046804,0.00036179,2]
[313720001,1707610244777,-1000.0,0.000362,2]
[313720002,1707610244786,-1000.0,0.000362,2]
[313720003,1707610244795,-1043.00809953,0.00036301,30]
[313720004,1707610244804,-404.6,0.00036301,2]
[313720005,1707610244813,-404.6,0.00036301,2]
[313720006,1707610244823,-404.6,0.00036301,2]
[313720007,1707610244832,-1813.29,0.00036311,5]
[313720008,1707610244841,-1818.28,0.00036311,5]
[313720009,1707610244850,-1811.02,0.00036311,5]
[313720010,1707610244859,-874.40398909,0.00036311,6]
[313720011,1707610244868,-286.53817164,0.00036311,4]
[313720012,1707610244878,-538.68815192,0.00036311,6]
[313720013,1707610244888,-1455.72155218,0.00036311,6]
[313720014,1707610244897,-2028.84150183,0.00036311,6]
[313720015,1707610244906,-19116.31946924,0.00036311,6]
[313720016,1707610244916,-1246.69292336,0.00036311,5]
[313720017,1707610244925,-1159.97130924,0.00036311,5]
[313720018,1707610244934,-611.53220916,0.00036311,2]
[313720019,1707610244947,-1000.0,0.00036311,10]
[313720020,1707610244957,-422.83489308,0.00036311,3]
[313720021,1707610244965,-206.02105685,0.00036311,3]
[313720022,1707610244974,-151.0,0.00036313,2]
[313720023,1707610244984,-250.49088,0.00036313,2]
[313720024,1707610244994,-150.0,0.00036399,30]
[313720025,1707610245005,-58000.0,0.000364,3]
[313720026,1707610245014,-217.48,0.00036438,2]
[313720027,1707610245024,-150.0,0.00036482,2]
[313720028,1707610245033,-302.0,0.00036923,4]
[313720029,1707610245043,-155.0,0.00036987,2]
[313720030,1707610245052,-50000.0,0.00037,7]
[313720031,1707610245061,-353.74853843,0.00037,4]
[313720032,1707610245072,-650.0,0.00037,3]
[313720033,1707610245081,-300.0,0.00037,38]
[313720034,1707610245091,-206.0,0.00037009,24]
[313720035,1707610245100,-150.0,0.00037059,2]
[313720036,1707610245109,-10000.0,0.00037075,2]
[313720037,1707610245118,-706.53,0.00037255,2]
[313720038,1707610245128,-404.6,0.0003726,2]
[313720039,1707610245138,-5000.0,0.000375,30]
[313720040,1707610245148,-604.0,0.00037544,7]
[313720041,1707610245157,-638.83,0.000376,3]
[313720042,1707610245168,-638.83,0.000376,3]
[313720043,1707610245177,-638.83,0.000376,3]
[313720044,1707610245186,-638.83,0.000376,3]
[313720045,1707610245195,-638.83,0.000376,3]
[313720046,1707610245205,-638.83,0.000376,3]
[313720047,1707610245214,-638.83,0.000376,3]
[313720048,1707610245223,-638.83,0.000376,3]
[313720049,1707610245233,-638.83,0.000376,3]
[313720050,1707610245242,-638.83,0.000376,3]
[313720051,1707610245252,-638.83,0.000376,3]
[313720052,1707610245261,-638.83,0.000376,3]
[313720053,1707610245271,-638.83,0.000376,3]
[313720054,1707610245280,-638.83,0.000376,3]
[313720055,1707610245290,-638.83,0.000376,3]
[313720056,1707610245300,-638.83,0.000376,3]
[313720057,1707610245310,-638.83,0.000376,3]
[313720058,1707610245319,-638.83,0.000376,3]
[313720059,1707610245328,-638.83,0.000376,3]
[313720060,1707610245337,-638.83,0.000376,3]
[313720061,1707610245347,-150.0,0.00037635,2]
[313720062,1707610245356,-2460.82046804,0.00037757,2]
[313720063,1707610245365,-4187.16,0.0003777,7]
[313720064,1707610245374,-4187.16,0.0003777,7]
[313720065,1707610245384,-4187.16,0.0003777,7]
[313720066,1707610245394,-4187.16,0.0003777,7]
[313720067,1707610245403,-15995.6519621,0.00037874,2]
[313720068,1707610245412,-3683.1629672,0.00037874,2]
[313720069,1707610245422,-13297.6879647,0.00037874,2]
[313720070,1707610245431,-23971.1420946,0.00037874,2]
[313720071,1707610245441,-3230.1693742,0.00037874,2]
[313720072,1707610245451,-787.364588,0.00037874,7]
[313720073,1707610245460,-787.364588,0.00037874,7]
[313720074,1707610245469,-150.0,0.00037899,30]
[313720075,1707610245479,-313.76817094,0.000379,2]
[313720076,1707610245488,-300.0,0.000379,13]
[313720077,1707610245498,-2008.72,0.000379,2]
[313720078,1707610245508,-647547.442305,0.000379,2]
[313720079,1707610245517,-2225.1850666,0.00037974,2]
[313720080,1707610245527,-507.6408797,0.00037974,2]
[313720081,1707610245536,-50000.0,0.00038,8]
[313720082,1707610245545,-2012.1153556,0.00038,3]
[313720083,1707610245555,-4974.53413545,0.00038,4]
[313720084,1707610245564,-5000.0,0.00038,30]
[313720085,1707610245573,-172.862363,0.00038,3]
[313720086,1707610245582,-2500.0,0.00038,5]
[313720087,1707610245592,-511.72076171,0.00038,4]
[313720088,1707610245601,-21661.9994435,0.00038,2]
[313720089,1707610245611,-300.0,0.00038,39]
[313720090,1707610245620,-4187.16,0.00038044,7]
[313720091,1707610245631,-4187.16,0.00038044,7]
[313720092,1707610245640,-500.0,0.00038146,6]
[313720093,1707610245650,-500.0,0.00038146,6]
[313720094,1707610245659,-500.0,0.00038146,6]
[313720095,1707610245669,-556.37082515,0.00038146,6]
[313720096,1707610245678,-166.99392,0.00038175,4]
[313720098,1707610245688,-150.0,0.00038212,2]
[313720099,1707610245697,-152.80258203,0.00038281,2]
[313720100,1707610245707,-3622.527787,0.000383,7]
[313720101,1707610245716,-200.0,0.000383,2]
[313720102,1707610245725,-4187.16,0.00038317,7]
[313720103,1707610245735,-4187.16,0.00038317,7]
[313720104,1707610245744,-155.57880662,0.00038319,7]
[313720105,1707610245753,-153.7803214,0.00038328,7]
[313720106,1707610245762,-2217.8744702,0.0003833,2]
[313720107,1707610245771,-505.9730824,0.0003833,2]
[313720108,1707610245780,-15855.559072,0.0003833,2]
[313720109,1707610245790,-3650.905142,0.0003833,2]
[313720110,1707610245799,-13181.2243442,0.0003833,2]
[313720111,1707610245808,-23734.0998084,0.0003833,2]
[313720112,1707610245818,-3201.878951,0.0003833,2]
[313720113,1707610245827,-10000.0,0.00038352,2]
[313720114,1707610245836,-10000.0,0.00038352,2]
[313720115,1707610245845,-155.0,0.00038353,2]
[313720116,1707610245854,-728.99082072,0.00038353,4]
[313720117,1707610245864,-16314.25993829,0.00038356,2]
[313720118,1707610245873,-1816.22,0.00038356,5]
[313720119,1707610245882,-500.0,0.00038356,30]
[313720120,1707610245891,-500.0,0.00038356,30]
[313720121,1707610245900,-500.0,0.00038356,30]
[313720122,1707610245909,-500.0,0.00038356,30]
[313720123,1707610245918,-500.0,0.00038356,30]
[313720124,1707610245927,-500.0,0.00038356,30]
[313720125,1707610245936,-500.0,0.00038356,30]
[313720126,1707610245945,-12240.3,0.00038356,14]
[313720127,1707610245954,-500.0,0.00038356,30]
[313720128,1707610245963,-500.0,0.00038356,30]
[313720129,1707610245972,-490.31406067,0.00038356,30]
[313720130,1707610245982,-507.45071265,0.00038356,30]
[313720131,1707610245991,-500.0,0.00038356,30]
[313720132,1707610246003,-500.0,0.00038356,30]
[313720133,1707610246012,-706.54,0.00038356,30]
[313720134,1707610246021,-500.0,0.00038356,30]
[313720135,1707610246030,-500.0,0.00038356,30]
[313720136,1707610246039,-500.0,0.00038356,30]
[313720137,1707610246049,-500.0,0.00038356,30]
[313720138,1707610246058,-500.0,0.00038356,30]
[313720139,1707610246067,-500.0,0.00038356,30]
[313720140,1707610246078,-775.61,0.00038356,30]
[313720141,1707610246088,-500.0,0.00038356,30]
[313720142,1707610246097,-500.0,0.00038356,30]
[313720143,1707610246107,-513.61780588,0.00038356,30]
[313720144,1707610246116,-493.86713781,0.00038356,30]
[313720145,1707610246125,-500.0,0.00038356,30]
[313720146,1707610246134,-507.40351964,0.00038356,30]
[313720147,1707610246143,-500.0,0.00038356,30]
[313720148,1707610246152,-500.0,0.00038356,30]
[313720149,1707610246161,-500.0,0.00038356,30]
[313720150,1707610246171,-500.0,0.00038356,30]
[313720151,1707610246180,-536.44,0.00038356,30]
[313720152,1707610246190,-514.81778074,0.00038356,30]
[313720153,1707610246200,-500.0,0.00038356,30]
[313720154,1707610246209,-500.0,0.00038356,30]
[313720155,1707610246218,-500.0,0.00038356,30]
[313720156,1707610246227,-500.0,0.00038356,30]
[313720157,1707610246236,-1000.0,0.00038356,2]
[313720158,1707610246246,-545.34,0.00038356,30]
[313720159,1707610246255,-504.04885945,0.00038356,30]
[313720160,1707610246263,-500.0,0.00038356,30]
[313720161,1707610246273,-500.0,0.00038356,30]
[313720162,1707610246282,-500.0,0.00038356,30]
[313720164,1707610246292,-500.0,0.00038356,30]
[313720166,1707610246301,-500.0,0.00038356,30]
[313720168,1707610246310,-510.71166464,0.00038356,30]
[313720170,1707610246319,-500.0,0.00038356,30]
[313720172,1707610246329,-500.0,0.00038356,30]
[313720174,1707610246338,-500.0,0.00038356,30]
[313720176,1707610246347,-500.0,0.00038356,30]
[313720178,1707610246356,-500.0,0.00038356,30]
[313720180,1707610246366,-555.57,0.00038356,30]
[313720182,1707610246375,-287.66085412,0.00038356,30]
[313720183,1707610246384,-500.0,0.00038356,30]
[313720184,1707610246394,-500.0,0.00038356,30]
[313720185,1707610246403,-500.0,0.00038356,30]
[313720186,1707610246412,-500.0,0.00038356,30]
[313720187,1707610246422,-500.0,0.00038356,30]
[313720188,1707610246431,-509.8533584,0.00038356,30]
[313720189,1707610246440,-500.0,0.00038356,30]
[313720190,1707610246450,-250.0,0.00038356,30]
[313720191,1707610246460,-500.0,0.00038356,30]
[313720192,1707610246470,-500.0,0.00038356,30]
[313720193,1707610246480,-500.0,0.00038356,30]
[313720194,1707610246489,-500.0,0.00038356,30]
[313720195,1707610246498,-500.0,0.00038356,30]
[313720196,1707610246508,-258.11966879,0.00038356,30]
[313720197,1707610246517,-154.35,0.00038356,30]
[313720198,1707610246526,-500.0,0.00038356,30]
[313720199,1707610246536,-505.24230814,0.00038356,30]
[313720200,1707610246545,-500.0,0.00038356,30]
[313720201,1707610246565,-500.0,0.00038356,30]
[313720202,1707610246575,-500.0,0.00038356,30]
[313720203,1707610246584,-500.0,0.00038356,30]
[313720204,1707610246594,-500.0,0.00038356,30]
[313720205,1707610246604,-500.0,0.00038356,30]
[313720206,1707610246613,-500.0,0.00038356,30]
[313720207,1707610246623,-648.05,0.00038356,30]
[313720208,1707610246632,-500.0,0.00038356,30]
[313720209,1707610246642,-500.0,0.00038356,2]
[313720210,1707610246652,-500.0,0.00038356,30]
[313720211,1707610246661,-500.0,0.00038356,30]
[313720212,1707610246671,-500.0,0.00038356,30]
[313720213,1707610246680,-500.0,0.00038356,30]
[313720214,1707610246690,-500.0,0.00038356,30]
[313720215,1707610246699,-500.0,0.00038356,30]
[313720216,1707610246708,-500.0,0.00038356,30]
[313720217,1707610246718,-531.80884594,0.00038356,30]
[313720218,1707610246727,-500.0,0.00038356,30]
[313720219,1707610246737,-1000.0,0.00038356,2]
[313720220,1707610246747,-298.57815826,0.00038356,30]
[313720221,1707610246756,-500.0,0.00038356,30]
[313720222,1707610246767,-565.79439182,0.00038356,30]
[313720223,1707610246777,-416.05813095,0.00038356,30]
[313720224,1707610246786,-500.0,0.00038356,30]
[313720225,1707610246795,-500.0,0.00038356,30]
[313720226,1707610246805,-500.0,0.00038356,30]
[313720227,1707610246814,-500.0,0.00038356,30]
[313720228,1707610246823,-500.0,0.00038356,30]
[313720229,1707610246832,-560.83120168,0.00038356,30]
[313720230,1707610246841,-500.0,0.00038356,30]
[313720231,1707610246850,-500.0,0.00038356,30]
[313720232,1707610246860,-500.0,0.00038356,30]
[313720233,1707610246869,-500.0,0.00038356,30]
[313720234,1707610246878,-500.0,0.00038356,30]
[313720235,1707610246888,-500.0,0.00038356,30]
[313720236,1707610246898,-500.0,0.00038356,30]
[313720237,1707610246907,-500.0,0.00038356,30]
[313720238,1707610246917,-500.0,0.00038356,30]
[313720239,1707610246926,-500.0,0.00038356,30]
[313720240,1707610246935,-515.83721747,0.00038356,30]
[313720241,1707610246944,-500.0,0.00038356,30]
[313720242,1707610246953,-352.50698573,0.00038356,30]
[313720243,1707610246963,-500.0,0.00038356,30]
[313720244,1707610246972,-500.0,0.00038356,30]
[313720245,1707610246982,-500.0,0.00038356,30]
[313720246,1707610246991,-500.0,0.00038356,30]
[313720247,1707610247004,-500.0,0.00038356,30]
[313720248,1707610247013,-1000.0,0.00038356,7]
[313720249,1707610247023,-190.53365405,0.00038356,30]
[313720250,1707610247033,-500.0,0.00038356,30]
[313720251,1707610247044,-511.95895804,0.00038356,30]
[313720252,1707610247055,-500.0,0.00038356,30]
[313720253,1707610247065,-489.9435546,0.00038356,30]
[313720254,1707610247076,-500.0,0.00038356,30]
[313720255,1707610247085,-500.0,0.00038356,30]
[313720256,1707610247094,-500.0,0.00038356,30]
[313720257,1707610247103,-500.0,0.00038356,30]
[313720258,1707610247113,-546.29,0.00038356,30]
[313720259,1707610247123,-462.13063265,0.00038356,30]
[313720260,1707610247132,-500.0,0.00038356,30]
[313720261,1707610247142,-504.29,0.00038356,30]
[313720262,1707610247152,-1676.27,0.00038356,30]
[313720263,1707610247161,-646.17,0.00038356,30]
[313720264,1707610247171,-500.0,0.00038356,30]
[313720265,1707610247180,-572.87,0.00038356,30]
[313720266,1707610247190,-500.0,0.00038356,30]
[313720267,1707610247199,-500.0,0.00038356,30]
[313720268,1707610247208,-769.96,0.00038356,2]
[313720269,1707610247218,-1275.58,0.00038356,30]
[313720270,1707610247227,-500.0,0.00038356,30]
[313720271,1707610247236,-500.0,0.00038356,30]
[313720272,1707610247245,-528.81,0.00038356,30]
[313720273,1707610247255,-688.53,0.00038356,30]
[313720274,1707610247264,-500.0,0.00038356,30]
[313720275,1707610247273,-500.0,0.00038356,30]
[313720276,1707610247282,-500.0,0.00038356,30]
[313720277,1707610247292,-500.0,0.00038356,30]
[313720278,1707610247301,-500.0,0.00038356,30]
[313720279,1707610247310,-500.0,0.00038356,30]
[313720280,1707610247320,-500.0,0.00038356,30]
[313720281,1707610247329,-523.24,0.00038356,30]
[313720282,1707610247338,-500.0,0.00038356,30]
[313720283,1707610247347,-344.21035792,0.00038356,30]
[313720284,1707610247356,-1465.99,0.00038356,30]
[313720285,1707610247365,-500.0,0.00038356,30]
[313720286,1707610247374,-500.0,0.00038356,30]
[313720287,1707610247384,-500.0,0.00038356,30]
[313720288,1707610247393,-500.0,0.00038356,30]
[313720289,1707610247403,-500.0,0.00038356,30]
[313720290,1707610247412,-500.0,0.00038356,30]
[313720291,1707610247421,-500.0,0.00038356,30]
[313720292,1707610247430,-500.0,0.00038356,30]
[313720293,1707610247440,-500.0,0.00038356,30]
[313720294,1707610247678,-500.0,0.00038356,30]
[313720295,1707610247687,-840.79,0.00038356,30]
[313720296,1707610247697,-500.0,0.00038356,30]
[313720297,1707610247706,-500.0,0.00038356,30]
[313720298,1707610247719,-1021.32,0.00038356,30]
[313720299,1707610247729,-500.0,0.00038356,30]
[313720300,1707610247739,-500.0,0.00038356,30]
[313720301,1707610247748,-500.0,0.00038356,30]
[313720302,1707610247758,-517.92,0.00038356,30]
[313720303,1707610247767,-500.0,0.00038356,30]
[313720304,1707610247776,-199.30282839,0.00038356,30]
[313720305,1707610247786,-500.0,0.00038356,30]
[313720306,1707610247795,-500.0,0.00038356,30]
[313720307,1707610247804,-500.0,0.00038356,30]
[313720308,1707610247814,-500.0,0.00038356,30]
[313720309,1707610247823,-910.78,0.00038356,30]
[313720310,1707610247833,-570.00976586,0.00038356,30]
[313720311,1707610247844,-500.0,0.00038356,30]
[313720312,1707610247854,-500.0,0.00038356,30]
[313720313,1707610247865,-594.14010254,0.00038356,30]
[313720314,1707610247874,-585.68785682,0.00038356,30]
[313720315,1707610247884,-518.97,0.00038356,30]
[313720316,1707610247898,-500.0,0.00038356,30]
[313720317,1707610247909,-516.86,0.00038356,30]
[313720318,1707610247918,-506.97,0.00038356,30]
[313720319,1707610247927,-500.0,0.00038356,30]
[313720320,1707610247936,-500.0,0.00038356,30]
[313720321,1707610247946,-500.0,0.00038356,30]
[313720322,1707610247955,-877.57,0.00038356,30]
[313720323,1707610247965,-500.0,0.00038356,30]
[313720324,1707610247975,-500.0,0.00038356,30]
[313720325,1707610247985,-956.96,0.00038356,30]
[313720326,1707610247997,-174.44588538,0.00038356,30]
[313720327,1707610248006,-500.0,0.00038356,30]
[313720328,1707610248016,-527.99822669,0.00038356,30]
[313720329,1707610248026,-613.18,0.00038356,30]
[313720330,1707610248035,-500.0,0.00038356,30]
[313720331,1707610248044,-500.0,0.00038356,30]
[313720332,1707610248053,-500.0,0.00038356,30]
[313720333,1707610248062,-500.0,0.00038356,30]
[313720334,1707610248073,-518.10652071,0.00038356,30]
[313720335,1707610248084,-500.0,0.00038356,30]
[313720336,1707610248093,-500.0,0.00038356,30]
[313720337,1707610248103,-537.91,0.00038356,30]
[313720338,1707610248112,-500.0,0.00038356,30]
[313720339,1707610248121,-500.0,0.00038356,30]
[313720340,1707610248130,-730.55,0.00038356,30]
[313720341,1707610248141,-752.48,0.00038356,30]
[313720342,1707610248150,-500.0,0.00038356,30]
[313720343,1707610248160,-518.12,0.00038356,30]